Cogmind - Beta 13 X1 @@@ ROGUE MODE // 2023.07.28 @ 17:11:45 Player: WayneKnight Result: Destroyed by EX-DEC with AWS/EX-DEC Performance ------------- Evolutions (1) 500 Regions Visited (5) 1000 Robots Destroyed (65) 325 Value Destroyed (1824) 1824 Prototype IDs (13) 260 Alien Tech Used (0) 0 Bonus (129) 129 TOTAL SCORE: 4038 Bonus ------- Follower Combat Kills 46 Aligned with FarCom 300 Friendly Fire -217 Cogmind --------- Core Integrity 0/400 Matter 279/300 Energy 200/200 System Corruption 2% Temperature Cool (0) Movement Walking (190) Ox1 Location -9/Exiles Parts ------- > --- POWER (1) -------- Cold Fusion Reactor > --- PROPULSION (2) --- Advanced Myomer Leg > --- UTILITY (4) ------ Large Storage Unit Improved Targeting Computer EX Chip 2 System Purifier > --- WEAPON (2) ------- Chainsword > --- INVENTORY (15) --- Cooled Ion Engine Light Neutrino Core Light Treads Aluminum Leg Aluminum Leg Gravmag Array Gravity Neutralizer Improved System Guard Advanced Recalibrator Guided Plasma Cannon Light Assault Rifle Mini Grenade Launcher Heavy Missile Launcher Peak State ------------ > --- POWER ------------ Light Neutrino Core > --- PROPULSION ------- Light Treads Advanced Myomer Leg > --- UTILITY ---------- Large Storage Unit Improved Targeting Computer Hardened Medium Armor Plating Advanced Recalibrator > --- WEAPON ----------- Pulse Rifle 8R-AWN's Boregun > --- INVENTORY -------- Cooled Ion Engine Gravmag Array Gravity Neutralizer Improved System Guard Guided Plasma Cannon Light Assault Rifle Mini Grenade Launcher Heavy Missile Launcher Chainsword [Rating: 47] Favorites ----------- Power Cooled Ion Engine Engine Cooled Ion Engine Power Core Light Nuclear Core Reactor Cold Fusion Reactor Propulsion Light Treads Treads Light Treads Leg Aluminum Leg Utility Large Storage Unit Device Improved Heat Sink Storage Large Storage Unit Processor Improved Targeting Computer Hackware EX Chip 2 Protection Hardened Medium Armor Plating Weapon Assault Rifle Energy Gun Pulse Rifle Energy Cannon Advanced Beam Cannon Ballistic Gun Assault Rifle Ballistic Cannon Gauss Cannon Launcher Mini Grenade Launcher Slashing Weapon Chainsword Build | -11 -10 -10 -9 -9 -9 ------- Run | Jun Mat Min Mat Min Exi Slots Evolved 2 | . . . 2 . . Power . | . . . . . . Propulsion . | . . . . . . Utility 2 | . . . 2 . . Weapon . | . . . . . . Parts Attached 81 | 4 5 8 26 4 34 Power 8 | . . 2 2 1 3 Engine 4 | . . . 2 1 1 Core 3 | . . 2 . . 1 Reactor 1 | . . . . . 1 Propulsion 17 | 2 . 2 6 . 7 Treads 12 | 2 . . 6 . 4 Leg 5 | . . 2 . . 3 Wheel . | . . . . . . Hover . | . . . . . . Flight . | . . . . . . Utility 24 | 1 3 1 7 1 11 Device 8 | 1 . . 2 . 5 Storage 3 | . 1 . 1 . 1 Processor 2 | . 1 . 1 . . Hackware 1 | . . . . . 1 Protection 10 | . 1 1 3 1 4 Artifact . | . . . . . . Weapon 32 | 1 2 3 11 2 13 Energy Gun 2 | . . . . . 2 Energy Cannon 5 | . 1 . 2 . 2 Ballistic Gun 17 | 1 1 3 6 2 4 Ballistic Cannon 2 | . . . . . 2 Launcher 4 | . . . 3 . 1 Special Weapon . | . . . . . . Impact Weapon . | . . . . . . Slashing Weapon 2 | . . . . . 2 Piercing Weapon . | . . . . . . Special Melee Weapon . | . . . . . . Unidentified Prototypes 11 | . . . 3 . 8 Parts Lost 21 | . . 5 . . 16 Power 1 | . . . . . 1 Propulsion 6 | . . 1 . . 5 Utility 5 | . . 1 . . 4 Weapon 9 | . . 3 . . 6 Highest Loss Streak 7 | . . 2 . . 7 To Critical Strikes 5 | . . . . . 5 Average Slot Usage (%) 99 | . 99 99 99 100 97 Engine 7 | . 14 . 8 11 6 Core 3 | . . 13 2 . 2 Treads 21 | . 28 20 21 22 16 Leg 2 | . . 7 . . 5 Device 9 | . 7 . 14 11 6 Storage 11 | . 14 14 11 11 11 Processor 4 | . 2 . 1 11 11 Protection 12 | . 4 14 16 11 10 Energy Cannon 4 | . 7 . 8 4 . Ballistic Gun 17 | . 20 28 12 17 14 Naked Turns . | . . . . . . Heaviest Build 57 | 14 32 32 52 44 57 Greatest Support 46 | 40 40 40 46 46 46 Greatest Overweight (x) 1 | . . 1 1 . 1 Average Overweight (x) . | . . . . . . Largest Inventory Capacity 15 | 8 15 15 15 15 15 Average Capacity 14 | 8 9 15 15 15 15 Most Carried 15 | 6 8 15 15 15 15 Average Carried 13 | 6 7 12 14 14 14 Final Capacity 15 | 8 15 15 15 15 15 Final Carried 15 | 6 8 12 15 15 14 Class Distribution -------------------- 77% | Mutant 22% | Scavenger-Mutant Dominant Class ---------------- Mutant | -10/Materials Mutant | -10/Mines Mutant | -9/Materials Mutant | -9/Mines Mutant | -9/Exiles Resources | -11 -10 -10 -9 -9 -9 ----------- Run | Jun Mat Min Mat Min Exi Matter Collected 1936 | 203 174 388 541 87 543 Remotely . | . . . . . . Salvage Created 2430 | 89 282 533 1185 162 179 Parts 160 | 6 16 31 86 6 15 Haulers Intercepted 1 | . . . 1 . . Recyclers Shooed . | . . . . . . Parts Field Recycled . | . . . . . . Retrieved Matter . | . . . . . . Parts Self-Destructed . | . . . . . . Prevented . | . . . . . . Kills | -11 -10 -10 -9 -9 -9 ------- Run | Jun Mat Min Mat Min Exi Combat Hostiles Destroyed 60 | . 7 15 26 4 8 Melee 1 | . . . . . 1 Guns 33 | . 4 15 12 2 . Cannons 14 | . 3 . 9 2 . AOE 12 | . . . 5 . 7 Classes Destroyed 12 | 2 3 . 5 . 2 Worker 1 | . . . 1 . . Builder 1 | . . . 1 . . Tunneler 2 | 1 . . 1 . . Hauler 1 | . . . 1 . . Recycler 1 | 1 . . . . . Turret 1 | . . . . . 1 Watcher 5 | . 2 . 3 . . Swarmer 13 | . 3 6 4 . . Grunt 29 | . 4 9 12 4 . Brawler 1 | . . . 1 . . Sentry 9 | . . . 9 . . Assembled 7 | . . . . . 7 Best Kill Streak 7 | 2 3 3 7 2 7 Combat Bots Only 7 | . 3 3 4 2 7 Max Kills in Single Turn 7 | 1 1 1 3 1 7 Gunslinging . | . . . . . . Exploded 7 | . . . 2 . 7 Melee 1 | . . . . . 1 Uniques/NPCs Destroyed 3 | . . . . . 3 EX-HEX (-9/Exiles) 8R-AWN (-9/Exiles) EX-BIN (-9/Exiles) Combat | -11 -10 -10 -9 -9 -9 -------- Run | Jun Mat Min Mat Min Exi Damage Taken 4546 | . 222 804 919 59 2542 Core 569 | . 60 106 72 10 321 Absorbed by Shields 32 | . . . 32 . . Redirected to Shielding 14 | . . 7 7 . . Regen/Repaired (Parts) 42 | . . . 42 . . Core Remaining (%) 66 | 100 . 33 . . . Volleys Fired 204 | 4 20 56 69 9 46 Largest 2 | 2 2 2 2 2 2 Hottest 120 | 40 80 40 91 91 120 Shots Fired 382 | 8 40 111 132 18 73 Gun 302 | 8 26 111 79 11 67 Cannon 72 | . 14 . 47 7 4 Launcher 8 | . . . 6 . 2 Special . | . . . . . . Kinetic 299 | 8 26 111 79 11 64 Thermal 75 | . 14 . 47 7 7 Explosive 8 | . . . 6 . 2 Electromagnetic . | . . . . . . Robot Hit Streak 19 | 5 7 15 18 19 9 Robot Miss Streak 6 | 1 3 4 3 1 6 Penetration Max . | . . . . . . Secondary Targets 2 | . . 2 . . . Max Gunslinging Chain 1 | . . 1 . . . Shots Hit Robots 256 | 5 26 73 82 13 57 Core Hits 126 | 3 12 30 47 5 29 Critical Kills 1 | . . . . . 1 Critical Parts Destroyed 3 | . . 1 . . 2 Critical Strikes 6 | . . 1 . . 5 Burn 1 | . . . . . 1 Destroy 5 | . . 1 . . 4 Melee Attacks 9 | . . . . . 9 Impact . | . . . . . . Slashing 9 | . . . . . 9 Piercing . | . . . . . . Sneak Attacks 1 | . . . . . 1 Combat Hostiles . | . . . . . . Follow-up Attacks . | . . . . . . Damage Inflicted 5237 | 52 396 958 2008 265 1558 Guns 2845 | 52 246 934 749 112 752 Cannons 1070 | . 146 . 751 135 38 Explosions 967 | . . . 506 . 461 Melee 307 | . . . . . 307 Ramming 48 | . 4 24 2 18 . Kinetic 2742 | 52 246 934 749 112 649 Thermal 1173 | . 146 . 751 135 141 Explosive 967 | . . . 506 . 461 Electromagnetic . | . . . . . . Impact . | . . . . . . Slashing 307 | . . . . . 307 Piercing . | . . . . . . Highest Corruption 2 | . . . . . 2 Average Corruption 1 | . . . . . 1 Corruption Purged 1 | . . . . . 1 Corruption Blocked . | . . . . . . Effects 1 | . . . . . 1 Matter Fused 1 | . . . . . 1 Overload Shots . | . . . . . . Overflow Damage 23 | . . . 12 . 11 Projectiles . | . . . . . . Explosions 23 | . . . 12 . 11 Melee . | . . . . . . Knockbacks 1 | . . . . 1 . Impact 1 | . . . . 1 . Kinetic . | . . . . . . Secondary . | . . . . . . Self-Inflicted Damage . | . . . . . . Shots . | . . . . . . Rammed 9 | . 2 2 1 4 . Targets Rammed 10 | . 2 3 1 4 . Kicked 1 | . . 1 . . . Crushed . | . . . . . . Highest Temperature 313 | . 150 53 120 2 313 Average Temperature 48 | . 56 16 31 2 95 Received Heat Transfer 868 | . 72 375 379 33 9 Siege Activations . | . . . . . . Robots Corrupted . | . . . . . . Combat Hostiles . | . . . . . . Parts Fried . | . . . . . . Impact Corruptions . | . . . . . . Robots Melted . | . . . . . . Combat Hostiles . | . . . . . . Parts Melted 3 | . 1 . 1 . 1 Heat Transferred 2008 | . 296 . 1258 222 232 Parts Sabotaged . | . . . . . . Parts Stolen . | . . . . . . Parts Stripped . | . . . . . . Power Chain Reactions . | . . . . . . Missiles Intercepted . | . . . . . . Alert | -11 -10 -10 -9 -9 -9 ------- Run | Jun Mat Min Mat Min Exi Peak Influence 273 | 10 137 201 273 97 . Initial 57 | . 6 . 16 57 . Average 73 | 8 32 84 103 30 . Maximum Alert Level 1 | . . 1 1 . . Low Security (%) 91 | 100 100 92 84 100 . Level 1 8 | . . 7 15 . . Level 2 . | . . . . . . Level 3 . | . . . . . . Level 4 . | . . . . . . Level 5 . | . . . . . . High Security . | . . . . . . Max Security . | . . . . . . Squads Dispatched 6 | . . . 5 1 . Investigation 3 | . . . 2 1 . Extermination . | . . . . . . Reinforcement 3 | . . . 3 . . Assault . | . . . . . . Garrison . | . . . . . . Intercept . | . . . . . . Searches Triggered . | . . . . . . Construction Impeded . | . . . . . . Haulers Reinforced . | . . . . . . Active Scanning Responses . | . . . . . . Cargo Convoy Interrupts . | . . . . . . Stealth | -11 -10 -10 -9 -9 -9 --------- Run | Jun Mat Min Mat Min Exi Distress Signals 3 | . . . 2 1 . Communications Jammed . | . . . . . . Distress Signals . | . . . . . . Times Spotted 113 | . 10 20 37 4 42 Peak Tracking Total 9 | . 3 3 6 1 9 Tactical Retreats 15 | . . 3 . . 12 Traps | -11 -10 -10 -9 -9 -9 ------- Run | Jun Mat Min Mat Min Exi Traps Triggered 1 | . . . 1 . . Indirectly . | . . . . . . Trap Hack Attempts . | . . . . . . Triggered . | . . . . . . Disarmed . | . . . . . . Reprogrammed . | . . . . . . Reused . | . . . . . . Traps Extracted . | . . . . . . Installed . | . . . . . . Triggered . | . . . . . . Machines | -11 -10 -10 -9 -9 -9 ---------- Run | Jun Mat Min Mat Min Exi Machines Disabled 13 | . 1 . 3 . 9 Max in Single Turn 2 | . 1 . 1 . 2 Machines Repaired . | . . . . . . Machines Sabotaged . | . . . . . . Overloaded Fab Kills . | . . . . . . Hacking | -11 -10 -10 -9 -9 -9 --------- Run | Jun Mat Min Mat Min Exi Machines Accessed 21 | . 7 . 11 1 2 Terminals 13 | . 5 . 8 . . Fabricators . | . . . . . . Repair Stations 1 | . . . 1 . . Recycling Units 4 | . 2 . 2 . . Scanalyzers . | . . . . . . Garrison Access . | . . . . . . Total Hacks 49 | . 18 . 27 1 3 Successful 25 | . 7 . 14 1 3 Failed 24 | . 11 . 13 . . Catastrophic 3 | . 1 . 2 . . Database Lockouts . | . . . . . . Manual 24 | . 11 . 12 . 1 Terminals 37 | . 15 . 22 . . Fabricators . | . . . . . . Repair Stations 3 | . . . 3 . . Recycling Units 5 | . 3 . 2 . . Scanalyzers . | . . . . . . Garrison Access . | . . . . . . Terminal Hacks 14 | . 3 . 7 1 3 Record 3 | . . . . . 3 Robot Analysis 3 | . 2 . 1 . . Prototype ID Bank 1 | . . . 1 . . Open Door 1 | . . . . 1 . Unreport Threat 2 | . . . 2 . . Locate Traps 3 | . 1 . 2 . . Recall Investigation 1 | . . . 1 . . Fabricator Hacks . | . . . . . . Repair Station Hacks 2 | . . . 2 . . Scan Component 1 | . . . 1 . . Repair 1 | . . . 1 . . Recycling Unit Hacks 4 | . 2 . 2 . . Report Inventory 4 | . 2 . 2 . . Scanalyzer . | . . . . . . Garrison Access Hacks . | . . . . . . Unauthorized Hacks 5 | . 2 . 3 . . Terminals 5 | . 2 . 3 . . Botnet 5 | . 2 . 3 . . Fabricators . | . . . . . . Repair Stations . | . . . . . . Recycling Units . | . . . . . . Scanalyzers . | . . . . . . Garrison Access . | . . . . . . Data Cores Recovered . | . . . . . . Used . | . . . . . . Hacking Detections 14 | . 6 . 8 . . Full Trace Events 1 | . . . 1 . . Feedback Events . | . . . . . . Feedback Blocked . | . . . . . . Robot Schematics Acquired . | . . . . . . Robots Built . | . . . . . . Authchips . | . . . . . . Time . | . . . . . . Total Robot Build Rating . | . . . . . . Part Schematics Acquired . | . . . . . . Parts Built . | . . . . . . Authchips . | . . . . . . Time . | . . . . . . Total Part Build Rating . | . . . . . . Parts Repaired 1 | . . . 1 . . Time 32 | . . . 32 . . Parts Recycled . | . . . . . . Recycled Matter . | . . . . . . Retrieved Matter . | . . . . . . Retrieved Components . | . . . . . . Parts Scanalyzed . | . . . . . . Part Schematics Acquired . | . . . . . . Parts Damaged . | . . . . . . Bothacking | -11 -10 -10 -9 -9 -9 ------------ Run | Jun Mat Min Mat Min Exi Used RIF Installer . | . . . . . . Robots Hacked . | . . . . . . Non-combat . | . . . . . . Combat . | . . . . . . Robot Hacks Applied . | . . . . . . Relay Couplers Released . | . . . . . . Fabnet Peak Effective % . | . . . . . . Robots Rewired . | . . . . . . Allies Hacked . | . . . . . . Hacks Repelled . | . . . . . . Allies | -11 -10 -10 -9 -9 -9 -------- Run | Jun Mat Min Mat Min Exi Total Allies 5 | . . 2 . 3 . Largest Group 3 | . . 1 . 3 3 Highest-Rated Group 40 | . . 31 . 40 40 Highest-Rated Ally 31 | . . 31 . 16 16 Total Orders . | . . . . . . Ally Attacks 21 | . . 6 . . 15 Total Damage 155 | . . 82 . . 73 Kills 5 | . . 4 . . 1 Allies Corrupted . | . . . . . . Allies Melted . | . . . . . . Intel | -11 -10 -10 -9 -9 -9 ------- Run | Jun Mat Min Mat Min Exi Robot Analysis Total 3 | . 2 . 1 . . Derelict Logs Recovered 2 | . . 1 . 1 . Drone Launches . | . . . . . . Drone Recoveries . | . . . . . . Exploration | -11 -10 -10 -9 -9 -9 ------------- Run | Jun Mat Min Mat Min Exi Turns Passed 8269 | 45 1024 1375 2898 1340 1587 Spaces Moved 3792 | 23 572 677 1006 725 789 Core . | . . . . . . Treads 3301 | 3 572 484 964 725 553 Legs 491 | 20 . 193 42 . 236 Wheels . | . . . . . . Hover . | . . . . . . Flight . | . . . . . . Fastest Speed 120 | 120 160 160 160 160 120 Average Speed 175 | 125 160 168 206 160 168 Slowest Speed 240 | 160 160 190 240 160 240 Overloaded Moves . | . . . . . . Propulsion Burnouts . | . . . . . . Robots Hopped . | . . . . . . Cave-ins Triggered . | . . . . . . Exploration Rate (%) 72 | 3 70 94 85 94 88 Regions Visited 5 Branch Regions 3 Pre-discovered Areas 2 | . . . . 1 1 Known Exits Taken . | . . . . . . Unknown Exits Taken 5 | 1 1 1 1 1 . Scrap Searched 5 | . . 3 . 2 . Spaces Dug . | . . . . . . Terrain Destroyed 73 | . . . 65 . 8 Melee . | . . . . . . Projectile 7 | . . . 2 . 5 AOE 65 | . . . 63 . 2 Terrain Rammed . | . . . . . . Walls Destroyed . | . . . . . . Machines Disabled . | . . . . . . Actions | -11 -10 -10 -9 -9 -9 --------- Run | Jun Mat Min Mat Min Exi Total 5012 | 30 643 797 1695 888 959 Wait 833 | . 35 47 555 137 59 Move 3787 | 22 571 676 1005 724 789 Hop . | . . . . . . Pick Up 34 | . 4 7 13 3 7 Fast Attach 29 | 1 3 . 12 1 12 Attach 19 | . . 5 1 . 13 Detach 8 | . 1 . . . 7 Swap 33 | 3 2 3 13 3 9 Drop 46 | . 5 . 26 7 8 Fire 204 | 4 20 56 69 9 46 Melee 9 | . . . . . 9 Ram . | . . . . . . Kick 1 | . . 1 . . . Crush 9 | . 2 2 1 4 . Escape Stasis . | . . . . . . Rewire . | . . . . . . Trap . | . . . . . . Miscellaneous . | . . . . . . Route ------- -11/Junkyard -10/Materials (discovered 4 exits: *Mat x2 / [*Min] / [*Sub]) -10/Mines (discovered 2 exits: *Mat x2) -9/Materials (discovered 3 exits: [*Mat x2] / *Min) -9/Mines (discovered 3 exits: [*Mat x2] / *Exi) -9/Exiles History --------- Turn | Location | Event 14 | -11/Junkyard | Discovered new exit (range 3) 46 | -11/Junkyard | Entered Materials 196 | -10/Materials | Discovered new exit (range 11) 302 | -10/Materials | Build established: Mutant 481 | -10/Materials | Discovered new exit (range 9) 634 | -10/Materials | Discovered new exit (range 15) 843 | -10/Materials | Discovered new exit (range 12) 1070 | -10/Materials | Entered Mines 1760 | -10/Mines | Discovered new exit (range 8) 1947 | -10/Mines | Core integrity fell below 50% 2103 | -10/Mines | Learned Materials stockpile data 2212 | -10/Mines | Discovered new exit (range 8) 2445 | -10/Mines | Entered Materials 2445 | -9/Materials | Evolved 2 slots: Utility x2 2859 | -9/Materials | Build established: Scavenger-Mutant 3480 | -9/Materials | Repaired Hvy. Assault Rifle 4196 | -9/Materials | Discovered new exit (range 16) 4396 | -9/Materials | Build established: Mutant 5105 | -9/Materials | Discovered new exit (range 12) 5280 | -9/Materials | Discovered new exit (range 9) 5343 | -9/Materials | Entered Mines 5434 | -9/Mines | Learned location of Storage (-8) 5469 | -9/Mines | Met a Derelict bent on vengeance 5622 | -9/Mines | Excavation squad dispatched 5622 | -9/Mines | A large section of the Mines collapsed 5733 | -9/Mines | Discovered new exit (range 6) 5797 | -9/Mines | Joined a pair of Derelicts in attacking an 0b10 outpost 5894 | -9/Mines | Assisted by bots powering up and referring to "LRC-V3" 6200 | -9/Mines | Met a Derelict shopkeep closing up shop 6268 | -9/Mines | Deemed a non-threat by the Exiles lab entrance 6269 | -9/Mines | Discovered new exit (range 5) 6322 | -9/Mines | Discovered new exit (range 10) 6330 | -9/Mines | Learned 4 Materials zone layouts 6683 | -9/Mines | Entered Exiles 6683 | -9/Exiles | Accompanied by 3 allies 6723 | -9/Exiles | Met 8R-AWN 6747 | -9/Exiles | Met EX-HEX 6835 | -9/Exiles | Met EX-DEC 6872 | -9/Exiles | Visited The Gauntlet 7051 | -9/Exiles | Learned location of Zion (-7) 7242 | -9/Exiles | Met EX-BIN 7261 | -9/Exiles | Aligned with FarCom system 7262 | -9/Exiles | Given EX-Vault access code 7302 | -9/Exiles | Opened EX-Vault 7316 | -9/Exiles | Found Prototype Device 7316 | -9/Exiles | Identified PSU Rigger 7326 | -9/Exiles | Found Prototype Energy Cannon 7326 | -9/Exiles | Identified Gui. Plasma Cannon 7374 | -9/Exiles | Warned to stay clear of 0b10 Research branches 7449 | -9/Exiles | Attacked by the Exiles 7455 | -9/Exiles | Allies destroyed EX-HEX 7471 | -9/Exiles | Destroyed 7 combat bots 7561 | -9/Exiles | Destroyed 8R-AWN 7562 | -9/Exiles | Lost 7 parts (1p2n1u3w) 7567 | -9/Exiles | Found Prototype Ballistic Gun 7567 | -9/Exiles | Identified 8R-AWN's Boregun 7770 | -9/Exiles | Core integrity fell below 50% 7824 | -9/Exiles | Lost 5 parts (2n2u1w) 8019 | -9/Exiles | Destroyed EX-BIN 8054 | -9/Exiles | Build established: Scavenger-Mutant 8161 | -9/Exiles | Found Prototype Device 8161 | -9/Exiles | Identified System Purifier 8266 | -9/Exiles | Core integrity fell below 20% 8270 | -9/Exiles | Destroyed by EX-DEC with AWS/EX-DEC Last Messages --------------- 08019_ HV Slug penetrates Testing Apparatus. 08027_ Acquired 30 matter. 08033_ Acquired Prototype Reactor. 08033_ Identified Cold Fusion Reactor. 08036_ HV Slug penetrates EX-DEC. 08036_ HV Slug penetrates Machine. 08036_ Machine disabled. 08039_ Hrd. Medium Armor Plating destroyed. 08041_ 8R-AWN's Boregun destroyed. 08085_ Acquired 8 matter. 08087_ Acquired 39 matter. 08112_ Acquired 50 matter. 08161_ Acquired Prototype Device. 08161_ Identified System Purifier. 08186_ System corrupted: Matter fused (-7). 08250_ System Purifier purges 1% system corruption (0%). 08260_ Pulse Rifle destroyed. 08264_ Machine disabled. 08266_ Aluminum Leg destroyed. 08268_ Sneak attack on EX-DEC. Map ----- +----------------------------------------------------+ | ???????????????????????????????????????#" | | ???????????????????????????????????????#"""" | | ???????????????????????????????????????#"" | | ???????????????????????????????????????#" | | ???????????????????????????????????????#""" | | ???????????????????????????????????????## | | ????????????????????????????????????????#"" | | ????????????????????????????????????????##""" | | ?????????????????????????????????????????##"""" | | ??????????????????????????????????????????### | | ????????????????????????????????????????????##### | | ????????????????????????????????????????????????## | | ?????????????????????????????????????????????????# | | ?????????????????????????????????????????????????# | | ?????????????????????????????????????????????????# | | ?????????????????#######??????????????######?????# | | ????????????????#"""""""#????""""""???#"""""""???# | | ????????????????#"" ""#??#"""""""#??#"""""""#??# | | ????????????????#" "#"""""""" "#??#" """"#??# | | ????????????????#"" ""#""#""" """#??#"" """#??# | | ?????????????????"" ""#""#"" ""????"" ""???# | | ???????????########"""###""###"""########"""###### | | ???????????#"""" "" """"""" """""""" """"" | | ???????????#" """""" """"" | | ???????????#""" | | ???????????#"""" c@ | | ???????????#"" | | ???????????#""" "" "" | | ???????????#"" """ """"" """"" " """" | | ???????????########"""########"""###""###"""###### | | ?????????????????"" "?????"" ""#""#"" ""???? | | ?????????????????""" """???#""" ""#""#""" ""???? | | ?????????????????" """ "???#" """"""""#" " "???? | | ?????????????????"""""""???#"""""""#???"""""""???? | | ??????????????????"""""????#"""""""#????""""""???? | | ????????????????????????????###"##???????????????? | | ?????????????????????????????????????????????????? | | ?????????????????????????????????????????????????? | | ?????????????????????????????????????????????????? | | ?????????????????????????????????????????????????? | | | | | | | | | | | | | | | | | | | | | +----------------------------------------------------+ Best States ------------- Heat Dissipation 42 Energy Generation 19 Energy Capacity 290 Matter Stores 300 Matter Capacity 300 Sight Range 16 Terrain Scan Range 16 Terrain Scan Density 10 Armor Coverage 450 Core Shielding 20 Evasion (%) 55 Targeting Accuracy 6 Recoil Reduction 2 Defensive Hacking 7 Item Schematics ----------------- None Robot Schematics ------------------ None Fabricated ------------ Nothing Alien Tech Used ----------------- None Achievements -------------- None Challenges ------------ None Game ------ Seed EtherialDronePendant Manual? 0 Play Time 00:31:15 Cumulative 64.8 hours Start 2023.07.28 @ 16:40:03 End 2023.07.28 @ 17:11:45 Sessions 1 Manual Loads 0 Difficulty Rogue Special Mode None Game No. 56 Rogue 56 Adventurer 0 Explorer 0 Win Type - Total 1 Types 0/0/1/0/0/0/0/0/0 Lore% 39 Gallery% 40 Achievement% 52 Wizard Run 0 Options --------- ASCII 1 Keyboard 1 Movement Arrows Keybinds 0 Fullscreen 2 Font 24/Proggy Map View 76x50 Tactical HUD 1 Map Filters NONE Filters NONE Steam 1 RUN: 4d0c35c4-6219-4226-92c8-ed3f21ce051b